Cogmind - Beta 12 @@@ ROGUE MODE // 2023.03.14 @ 15:34:21 Player: Peregrine Result: Destroyed self via exploding Fusion Modulator Performance ------------- Evolutions (0) 0 Regions Visited (1) 200 Robots Destroyed (21) 105 Value Destroyed (384) 384 Prototype IDs (0) 0 Alien Tech Used (0) 0 Bonus (0) 0 TOTAL SCORE: 689 Bonus ------- None Cogmind --------- Core Integrity 0/250 Matter 191/300 Energy 137/250 System Corruption 0% Temperature Hot (208) Movement Walking (120) Location -10/Materials Parts ------- > --- POWER (1) -------- Ion Engine > --- PROPULSION (2) --- Aluminum Leg Aluminum Leg > --- UTILITY (2) ------ Improved Terrain Scanner > --- WEAPON (2) ------- Particle Gun Particle Gun > --- INVENTORY (5) ---- Heat Sink Assault Rifle Light Assault Rifle Grenade Launcher Peak State ------------ > --- POWER ------------ (None) > --- PROPULSION ------- Aluminum Leg Aluminum Leg > --- UTILITY ---------- Small Storage Unit Improved Terrain Scanner > --- WEAPON ----------- Particle Gun Particle Gun > --- INVENTORY -------- Aluminum Leg Heat Sink Assault Rifle Light Assault Rifle Grenade Launcher [Rating: 10] Favorites ----------- Power Light Ion Engine Engine Light Ion Engine Propulsion Aluminum Leg Leg Aluminum Leg Utility Small Storage Unit Device Improved Terrain Scanner Storage Small Storage Unit Weapon Light Assault Rifle Energy Gun Particle Gun Ballistic Gun Light Assault Rifle Launcher Grenade Launcher Build | -11 -10 ------- Run | Jun Mat Slots Evolved . | . . Power . | . . Propulsion . | . . Utility . | . . Weapon . | . . Parts Attached 20 | 7 13 Power 2 | 1 1 Engine 2 | 1 1 Core . | . . Reactor . | . . Propulsion 5 | 2 3 Treads . | . . Leg 5 | 2 3 Wheel . | . . Hover . | . . Flight . | . . Utility 2 | 2 . Device 1 | 1 . Storage 1 | 1 . Processor . | . . Hackware . | . . Protection . | . . Artifact . | . . Weapon 11 | 2 9 Energy Gun 4 | . 4 Energy Cannon . | . . Ballistic Gun 5 | 2 3 Ballistic Cannon . | . . Launcher 2 | . 2 Special Weapon . | . . Impact Weapon . | . . Slashing Weapon . | . . Piercing Weapon . | . . Special Melee Weapon . | . . Unidentified Prototypes . | . . Parts Lost 2 | . 2 Power 1 | . 1 Propulsion 1 | . 1 Utility . | . . Weapon . | . . Highest Loss Streak 1 | . 1 To Critical Strikes . | . . Average Slot Usage (%) 90 | . 90 Engine 5 | . 5 Leg 27 | . 27 Device 14 | . 14 Storage 13 | . 13 Energy Gun 10 | . 10 Ballistic Gun 14 | . 14 Launcher 3 | . 3 Naked Turns . | . . Heaviest Build 14 | 12 14 Greatest Support 20 | 20 20 Greatest Overweight (x) 1 | 1 1 Average Overweight (x) . | . . Largest Inventory Capacity 8 | 8 8 Average Capacity 7 | 7 7 Most Carried 6 | 2 6 Average Carried 2 | . 3 Final Capacity 8 | 8 5 Final Carried 4 | . 4 Class Distribution -------------------- 100% | Mutant Dominant Class ---------------- Mutant | -10/Materials Resources | -11 -10 ----------- Run | Jun Mat Matter Collected 521 | 370 151 Remotely . | . . Salvage Created 559 | 205 354 Parts 41 | 13 28 Haulers Intercepted 1 | . 1 Recyclers Shooed . | . . Parts Field Recycled . | . . Retrieved Matter . | . . Parts Self-Destructed . | . . Prevented . | . . Kills | -11 -10 ------- Run | Jun Mat Combat Hostiles Destroyed 9 | . 9 Guns 6 | . 6 AOE 3 | . 3 Classes Destroyed 8 | 3 5 Worker 2 | 2 . Tunneler 5 | 5 . Hauler 1 | . 1 Recycler 2 | 1 1 Mechanic 1 | . 1 Watcher 1 | . 1 Swarmer 3 | . 3 Grunt 6 | . 6 Best Kill Streak 4 | 4 3 Combat Bots Only 3 | . 3 Max Kills in Single Turn 2 | 2 2 Gunslinging . | . . Exploded 2 | . 2 Melee . | . . Uniques/NPCs Destroyed . | . . Combat | -11 -10 -------- Run | Jun Mat Damage Taken 839 | . 839 Core 333 | . 333 Absorbed by Shields . | . . Core Remaining (%) 100 | 100 . Volleys Fired 69 | 25 44 Largest 2 | 2 2 Hottest 130 | 40 130 Shots Fired 126 | 50 76 Gun 115 | 50 65 Cannon . | . . Launcher 11 | . 11 Special . | . . Kinetic 76 | 50 26 Thermal 39 | . 39 Explosive 11 | . 11 Electromagnetic . | . . Robot Hit Streak 12 | 6 12 Robot Miss Streak 7 | 7 5 Penetration Max . | . . Secondary Targets 2 | . 2 Max Gunslinging Chain 1 | . 1 Shots Hit Robots 66 | 28 38 Core Hits 37 | 12 25 Critical Kills . | . . Critical Parts Destroyed . | . . Critical Strikes . | . . Melee Attacks . | . . Impact . | . . Slashing . | . . Piercing . | . . Sneak Attacks . | . . Combat Hostiles . | . . Follow-up Attacks . | . . Damage Inflicted 1119 | 296 823 Guns 679 | 296 383 Cannons . | . . Explosions 440 | . 440 Melee . | . . Ramming . | . . Kinetic 430 | 296 134 Thermal 363 | . 363 Explosive 326 | . 326 Electromagnetic . | . . Impact . | . . Slashing . | . . Piercing . | . . Highest Corruption . | . . Average Corruption . | . . Corruption Purged . | . . Corruption Blocked . | . . Overload Shots . | . . Overflow Damage 61 | . 61 Projectiles . | . . Explosions 61 | . 61 Melee . | . . Knockbacks . | . . Impact . | . . Kinetic . | . . Secondary . | . . Self-Inflicted Damage 352 | . 352 Shots 5 | . 5 Rammed . | . . Targets Rammed . | . . Kicked . | . . Crushed . | . . Highest Temperature 300 | . 300 Average Temperature 74 | . 74 Received Heat Transfer 252 | . 252 Siege Activations . | . . Robots Corrupted . | . . Combat Hostiles . | . . Parts Fried . | . . Impact Corruptions . | . . Robots Melted . | . . Combat Hostiles . | . . Parts Melted 2 | . 2 Heat Transferred 645 | . 645 Parts Sabotaged . | . . Parts Stolen . | . . Parts Stripped . | . . Power Chain Reactions . | . . Missiles Intercepted . | . . Alert | -11 -10 ------- Run | Jun Mat Peak Influence 395 | 40 395 Initial 26 | . 26 Average 114 | 16 163 Maximum Alert Level 1 | . 1 Low Security (%) 61 | 100 42 Level 1 38 | . 57 Level 2 . | . . Level 3 . | . . Level 4 . | . . Level 5 . | . . High Security . | . . Max Security . | . . Squads Dispatched 3 | . 3 Investigation 2 | . 2 Extermination . | . . Reinforcement 1 | . 1 Assault . | . . Garrison . | . . Intercept . | . . Searches Triggered . | . . Construction Impeded . | . . Haulers Reinforced . | . . Active Scanning Responses . | . . Cargo Convoy Interrupts . | . . Stealth | -11 -10 --------- Run | Jun Mat Distress Signals 1 | . 1 Communications Jammed . | . . Distress Signals . | . . Times Spotted 16 | . 16 Peak Tracking Total 5 | . 5 Tactical Retreats 1 | . 1 Traps | -11 -10 ------- Run | Jun Mat Traps Triggered 1 | . 1 Indirectly . | . . Trap Hack Attempts . | . . Triggered . | . . Disarmed . | . . Reprogrammed . | . . Reused . | . . Traps Extracted . | . . Installed . | . . Triggered . | . . Machines | -11 -10 ---------- Run | Jun Mat Machines Disabled 7 | . 7 Max in Single Turn 4 | . 4 Machines Repaired . | . . Machines Sabotaged . | . . Overloaded Fab Kills . | . . Hacking | -11 -10 --------- Run | Jun Mat Machines Accessed 4 | . 4 Terminals 3 | . 3 Fabricators . | . . Repair Stations . | . . Recycling Units 1 | . 1 Scanalyzers . | . . Garrison Access . | . . Total Hacks 15 | . 15 Successful 8 | . 8 Failed 7 | . 7 Catastrophic 1 | . 1 Database Lockouts . | . . Manual 12 | . 12 Terminals 13 | . 13 Fabricators . | . . Repair Stations . | . . Recycling Units 2 | . 2 Scanalyzers . | . . Garrison Access . | . . Terminal Hacks 5 | . 5 Robot Analysis 1 | . 1 Unreport Threat 3 | . 3 Recall Investigation 1 | . 1 Fabricator Hacks . | . . Repair Station Hacks . | . . Recycling Unit Hacks . | . . Scanalyzer . | . . Garrison Access Hacks . | . . Unauthorized Hacks 3 | . 3 Terminals 2 | . 2 Botnet 2 | . 2 Fabricators . | . . Repair Stations . | . . Recycling Units 1 | . 1 Tunnel 1 | . 1 Scanalyzers . | . . Garrison Access . | . . Data Cores Recovered . | . . Used . | . . Hacking Detections 4 | . 4 Full Trace Events 1 | . 1 Feedback Events . | . . Feedback Blocked . | . . Robot Schematics Acquired . | . . Robots Built . | . . Authchips . | . . Time . | . . Total Robot Build Rating . | . . Part Schematics Acquired . | . . Parts Built . | . . Authchips . | . . Time . | . . Total Part Build Rating . | . . Parts Repaired . | . . Time . | . . Parts Recycled . | . . Recycled Matter . | . . Retrieved Matter . | . . Retrieved Components . | . . Parts Scanalyzed . | . . Part Schematics Acquired . | . . Parts Damaged . | . . Bothacking | -11 -10 ------------ Run | Jun Mat Used RIF Installer . | . . Robots Hacked . | . . Non-combat . | . . Combat . | . . Robot Hacks Applied . | . . Relay Couplers Released . | . . Fabnet Peak Effective % . | . . Robots Rewired . | . . Allies Hacked . | . . Hacks Repelled . | . . Allies | -11 -10 -------- Run | Jun Mat Total Allies . | . . Largest Group . | . . Highest-Rated Group . | . . Highest-Rated Ally . | . . Total Orders . | . . Ally Attacks . | . . Total Damage . | . . Kills . | . . Allies Corrupted . | . . Allies Melted . | . . Intel | -11 -10 ------- Run | Jun Mat Robot Analysis Total 1 | . 1 Derelict Logs Recovered . | . . Drone Launches . | . . Drone Recoveries . | . . Exploration | -11 -10 ------------- Run | Jun Mat Turns Passed 652 | 215 437 Spaces Moved 340 | 114 226 Core 11 | 11 . Treads . | . . Legs 329 | 103 226 Wheels . | . . Hover . | . . Flight . | . . Fastest Speed 50 | 50 120 Average Speed 118 | 114 120 Slowest Speed 190 | 120 190 Overloaded Moves . | . . Propulsion Burnouts . | . . Robots Hopped . | . . Cave-ins Triggered . | . . Exploration Rate (%) 22 | 6 38 Regions Visited 1 Branch Regions . Pre-discovered Areas 1 | . 1 Known Exits Taken . | . . Unknown Exits Taken 1 | 1 . Scrap Searched . | . . Spaces Dug . | . . Terrain Destroyed 61 | . 61 Melee . | . . Projectile . | . . AOE 61 | . 61 Terrain Rammed . | . . Walls Destroyed . | . . Machines Disabled . | . . Actions | -11 -10 --------- Run | Jun Mat Total 470 | 153 317 Wait 18 | 1 17 Move 339 | 113 226 Hop . | . . Pick Up 18 | 7 11 Fast Attach . | . . Attach 9 | 7 2 Detach . | . . Swap 11 | . 11 Drop 6 | . 6 Fire 69 | 25 44 Melee . | . . Ram . | . . Kick . | . . Crush . | . . Escape Stasis . | . . Rewire . | . . Trap . | . . Miscellaneous . | . . Route ------- -11/Junkyard -10/Materials History --------- Turn | Location | Event 29 | -11/Junkyard | Discovered new exit (range 15) 216 | -11/Junkyard | Entered Materials 325 | -10/Materials | Build established: Mutant 365 | -10/Materials | Core integrity fell below 50% 583 | -10/Materials | Core integrity fell below 20% 653 | -10/Materials | Destroyed self via exploding Fusion Modulator Last Messages --------------- 00602_ K-01 Serf cleans the Nuclear Reactor. 00606_ Heat Sink melted. 00606_ Aluminum Leg melted. 00606_ G-34 Mercenary destroyed. 00607_ K-01 Serf collects debris. 00611_ Acquired 27 matter. 00611_ O-16 Technician: "IFF HANDSHAKE FAILED. SECURING TERMINAL." 00614_ U-05 Engineer builds a Wall. 00620_ ALERT: Hostiles spotted, dispatching reinforcements to Terminal M008. 00623_ K-01 Serf collects debris. 00627_ Acquired 40 matter. 00628_ Aluminum Leg destroyed. 00631_ Acquired Ion Engine. 00635_ Dropped Sml. Storage Unit. 00645_ G-34 Mercenary destroyed. 00651_ Switching to secondary target: G-34 Mercenary. 00653_ Fusion Modulator explodes. 00653_ Destroyed Sml. Laser. 00653_ Destroyed Ion Engine. Map ----- +----------------------------------------------------+ | ?????????????????????????????????????????????????? | | ??????????????????????????????????????????#??????? | | ?????????????????????????????????????????????????? | | ?????????????????#########???????????????????????? | | ?????????????????# """ #??????????????????????? | | ?????????????????# "Y" #??????????????????????? | | ?????????????????# #??????????????????????? | | ?????????????????# #??????????????????????? | | ?????????????????# #??????????????????????? | | ???????????#####?# """ #?????## ???#???????? | | ??????????##!!!!## """ ### " ?????????#??? | | ??????????#! !# """ + ?????????????#???? | | ??????????# # #???? ?????????########? | | ??????##### #####"####??????????????# #? | | ????? #########????#??## #? | | ????? +??????? ?#""" #? | | ????? T ######??????? ???#""" #? | | ????????###### ==#?????? ?????#""" #? | | ?????????????# ! ==#?#???? ?????# =#? | | ????????????## % ==#????????????####+###? | | ????????????## ! ==##?#???????? #### #?#? | | ???????????### [ [[#???????????????# #??? | | ???????????# # ! [ #?#??? ?? ????# #??? | | ???+???????# !!#####?????########### #??? | | ??????????## # !! #########?# # #?#? | | ??? ????#### # =!!#@%= #?# # #??? | | ??????###T# # g ### ===# #??? | | ?"????# +! #?# *= %# #??? | | ??????# #= #?#####+##+## ##?? | | ??????# # #??#?## ! ##?? | | ??????# ########### ############### #######?? | | ???? ?# ########## ! #### # # | | ??????# # # ^^ + """ # | | ??????# # T # " """ # | | ??????# # # ^^ " """ # | | ??????# # """ # # #### " # | | ??????# # """ ############## " """ # | | ??????# # """ ##????# " " """" ? | | ??????# + """ #?##??#""" " " """" # | | ??????# # #????##"Y " # | | ??????# # #?????#""" = # | | ??????# ##########????## " # | | ??????? ??????#?#??????# """ "####### | | ??????# ??????#?????????# """ " # | | ??????#??????????????????# """ " "" """ # | | ???????????????????????#?# " "" """ # | | ????????????????????? ???# """ # "" """ *# | | ???????????????????"?????# """ # " # | | ?????????????????????????# """ # " """ # | | ????????????????? ???????# + " """ # | +----------------------------------------------------+ Best States ------------- Heat Dissipation 25 Energy Generation 10 Energy Capacity 250 Matter Stores 300 Matter Capacity 300 Sight Range 16 Terrain Scan Range 16 Terrain Scan Density 10 Evasion (%) 55 Item Schematics ----------------- None Robot Schematics ------------------ None Fabricated ------------ Nothing Alien Tech Used ----------------- None Achievements -------------- None Challenges ------------ None Game ------ Seed MissileResetBuckler Manual? 0 Play Time 00:07:53 Cumulative 41.1 hours Start 2023.03.14 @ 15:27:10 End 2023.03.14 @ 15:34:21 Sessions 1 Manual Loads 0 Difficulty Rogue Special Mode None Game No. 62 Rogue 61 Adventurer 1 Explorer 0 Win Type - Total 0 Types 0/0/0/0/0/0/0/0/0 Lore% 19 Gallery% 35 Achievement% 26 Wizard Run 0 Options --------- ASCII 0 Keyboard 0 Movement Mouse Keybinds 0 Fullscreen 1 Font 36/Smallcaps Map View 76x50 Tactical HUD 1 Map Filters NONE Filters NONE Steam 1 RUN: 1315c622-961d-435e-98fa-d532c1134b12